[Event "*** Titled Tuesday 3|2 Blitz"]
[Site "Chess.com"]
[Date "2015.10.06"]
[Round "3"]
[White "IMRosen"]
[Black "GMVallejo"]
[Result "1/2-1/2"]
[WhiteElo "2266"]
[BlackElo "2589"]
[TimeControl "180+2"]
[EndTime "17:39:58 PDT"]
[Termination "Game drawn by agreement"]

1. c4 {[%clk 0:03:01.9]} 1... e5 {[%clk 0:02:59.8]} 2. Nc3 {[%clk 0:03:01.9]}
2... Nc6 {[%clk 0:03:01.4]} 3. Nf3 {[%clk 0:03:03.6]} 3... Bc5 {[%clk
0:03:02.7]} 4. Nxe5 {[%clk 0:03:02.2]} 4... Bxf2+ {[%clk 0:02:54.6]} 5. Kxf2
{[%clk 0:03:04.1]} 5... Nxe5 {[%clk 0:02:56]} 6. d4 {[%clk 0:02:38.8]} 6... Nxc4
{[%clk 0:02:35.3]} 7. e4 {[%clk 0:02:36]} 7... Nb6 {[%clk 0:02:35]} 8. Bd3
{[%clk 0:02:28.3]} 8... Qf6+ {[%clk 0:02:33.4]} 9. Ke1 {[%clk 0:02:29.9]} 9...
c6 {[%clk 0:02:01]} 10. Be3 {[%clk 0:02:10.9]} 10... d6 {[%clk 0:01:54]} 11. Rf1
{[%clk 0:01:59.5]} 11... Qe7 {[%clk 0:01:48.3]} 12. Qf3 {[%clk 0:01:36.2]} 12...
Nf6 {[%clk 0:01:38.6]} 13. h3 {[%clk 0:01:37.8]} 13... Bd7 {[%clk 0:01:17.4]}
14. Kd1 {[%clk 0:01:39.1]} 14... O-O-O {[%clk 0:01:15.1]} 15. Kc2 {[%clk
0:01:34.5]} 15... Rdf8 {[%clk 0:01:12]} 16. Rae1 {[%clk 0:01:33.5]} 16... Ne8
{[%clk 0:01:12.8]} 17. g4 {[%clk 0:01:34.6]} 17... f6 {[%clk 0:01:14.1]} 18. Kb1
{[%clk 0:01:35.3]} 18... h6 {[%clk 0:01:15.4]} 19. Bf4 {[%clk 0:01:35.8]} 19...
Kb8 {[%clk 0:01:12.5]} 20. Bg3 {[%clk 0:01:31.2]} 20... Ka8 {[%clk 0:01:12.9]}
21. Re2 {[%clk 0:01:30.5]} 21... h5 {[%clk 0:01:04.6]} 22. a4 {[%clk 0:01:09.9]}
22... hxg4 {[%clk 0:01:02.9]} 23. hxg4 {[%clk 0:01:11.8]} 23... Nc7 {[%clk
0:01:02.8]} 24. a5 {[%clk 0:01:10.8]} 24... Nc8 {[%clk 0:01:01.3]} 25. Bf2
{[%clk 0:01:12.1]} 25... a6 {[%clk 0:00:59.3]} 26. Rg1 {[%clk 0:01:04.1]} 26...
Ne6 {[%clk 0:00:59.8]} 27. Qe3 {[%clk 0:01:04]} 27... Qd8 {[%clk 0:00:57.8]} 28.
b4 {[%clk 0:01:03.3]} 28... Ng5 {[%clk 0:00:55.4]} 29. Bg3 {[%clk 0:00:56.6]}
29... Qe7 {[%clk 0:00:53.6]} 30. Bf4 {[%clk 0:00:56.8]} 30... Nh3 {[%clk
0:00:52.8]} 31. Rg3 {[%clk 0:00:51.3]} 31... Nxf4 {[%clk 0:00:53.5]} 32. Qxf4
{[%clk 0:00:52.7]} 32... d5 {[%clk 0:00:43.3]} 33. exd5 {[%clk 0:00:29.1]} 33...
Qxb4+ {[%clk 0:00:42.9]} 34. Rb2 {[%clk 0:00:30.8]} 34... Qxc3 {[%clk 0:00:31]}
35. Bxa6 {[%clk 0:00:32]} 35... Rh1+ {[%clk 0:00:30.3]} 36. Ka2 {[%clk
0:00:33.1]} 36... Qxa5+ {[%clk 0:00:28.8]} 37. Ra3 {[%clk 0:00:33.6]} 37... Ra1+
{[%clk 0:00:29.2]} 38. Kxa1 {[%clk 0:00:34.9]} 38... Qxa3+ {[%clk 0:00:30.4]}
39. Kb1 {[%clk 0:00:36.5]} 39... Nd6 {[%clk 0:00:23.4]} 40. Bxb7+ {[%clk
0:00:24.4]} 40... Nxb7 {[%clk 0:00:20.8]} 41. Ra2 {[%clk 0:00:23.9]} 41... Qxa2+
{[%clk 0:00:21.9]} 42. Kxa2 {[%clk 0:00:25.8]} 42... cxd5 {[%clk 0:00:22.7]} 43.
Qc7 {[%clk 0:00:26.2]} 43... Rd8 {[%clk 0:00:21.5]} 44. Qc2 {[%clk 0:00:11.4]}
44... Bxg4 {[%clk 0:00:15.3]} 45. Qg6 {[%clk 0:00:12.9]} 45... Be2 {[%clk
0:00:15.4]} 46. Qxg7 {[%clk 0:00:13.4]} 46... Bc4+ {[%clk 0:00:17]} 47. Kb2
{[%clk 0:00:14.9]} 47... Rd6 {[%clk 0:00:18.7]} 48. Qf8+ {[%clk 0:00:14.5]}
48... Ka7 {[%clk 0:00:20.2]} 49. Kc3 {[%clk 0:00:15.4]} 49... Rb6 {[%clk
0:00:21.4]} 50. Kd2 {[%clk 0:00:16.2]} 50... Ra6 {[%clk 0:00:21.6]} 51. Ke3
{[%clk 0:00:15.8]} 51... Re6+ {[%clk 0:00:22]} 52. Kd2 {[%clk 0:00:16.1]} 52...
Rb6 {[%clk 0:00:16.8]} 53. Qa3+ {[%clk 0:00:17.2]} 53... Ra6 {[%clk 0:00:17.8]}
54. Qb4 {[%clk 0:00:18.5]} 54... f5 {[%clk 0:00:16.5]} 55. Ke3 {[%clk
0:00:18.1]} 55... Re6+ {[%clk 0:00:14.9]} 56. Kf3 {[%clk 0:00:17]} 56... Nd6
{[%clk 0:00:13.2]} 57. Qc5+ {[%clk 0:00:10.1]} 57... Kb7 {[%clk 0:00:13.4]} 58.
Qb4+ {[%clk 0:00:11.8]} 58... Nb5 {[%clk 0:00:14.6]} 59. Qf8 {[%clk 0:00:12.4]}
59... Re4 {[%clk 0:00:15.3]} 60. Qf7+ {[%clk 0:00:11.5]} 60... Kb6 {[%clk
0:00:16.4]} 61. Qf6+ {[%clk 0:00:12]} 61... Ka5 {[%clk 0:00:17.4]} 62. Qd8+
{[%clk 0:00:12.7]} 62... Ka4 {[%clk 0:00:17.5]} 63. Qa8+ {[%clk 0:00:13.3]}
63... Kb4 {[%clk 0:00:17.2]} 64. Qf8+ {[%clk 0:00:14]} 64... Kb3 {[%clk
0:00:17.8]} 65. Kf2 {[%clk 0:00:14.7]} 65... Nxd4 {[%clk 0:00:18.6]} 66. Qb8+
{[%clk 0:00:16.3]} 66... Nb5 {[%clk 0:00:19.4]} 67. Qc8 {[%clk 0:00:15.2]} 67...
f4 {[%clk 0:00:20.6]} 68. Qg4 {[%clk 0:00:08.9]} 68... Kb4 {[%clk 0:00:21]} 69.
Qd1 {[%clk 0:00:09.4]} 69... Kc5 {[%clk 0:00:21.8]} 70. Qa1 {[%clk 0:00:10]}
70... Nd4 {[%clk 0:00:22.5]} 71. Qa5+ {[%clk 0:00:10.2]} 71... Nb5 {[%clk
0:00:22.9]} 72. Qa1 {[%clk 0:00:11.2]} 72... Re3 {[%clk 0:00:22.4]} 73. Qf6
{[%clk 0:00:09.6]} 73... Re2+ {[%clk 0:00:21.5]} 74. Kf3 {[%clk 0:00:09]} 74...
Re1 {[%clk 0:00:18.4]} 75. Kf2 {[%clk 0:00:09.2]} 75... Rf1+ {[%clk 0:00:18.8]}
76. Kg2 {[%clk 0:00:10.6]} 76... f3+ {[%clk 0:00:20.1]} 77. Kg3 {[%clk
0:00:12.2]} 77... f2 {[%clk 0:00:21.4]} 78. Qe7+ {[%clk 0:00:10.3]} 78... Kd4
{[%clk 0:00:20.3]} 79. Kf3 {[%clk 0:00:09.2]} 79... Kc3 {[%clk 0:00:17.7]} 80.
Qe3+ {[%clk 0:00:09]} 80... Kb4 {[%clk 0:00:18.6]} 81. Qd2+ {[%clk 0:00:06.9]}
81... Kc5 {[%clk 0:00:19.7]} 82. Qe3+ {[%clk 0:00:08.2]} 82... Kc6 {[%clk
0:00:19.5]} 83. Qe6+ {[%clk 0:00:08.9]} 83... Kc5 {[%clk 0:00:20.8]} 84. Qe7+
{[%clk 0:00:10.3]} 84... Nd6 {[%clk 0:00:20]} 85. Qc7+ {[%clk 0:00:11.3]} 85...
Kd4 {[%clk 0:00:17.6]} 86. Qxd6 {[%clk 0:00:12.6]} 86... Kc3 {[%clk 0:00:17]}
87. Qa3+ {[%clk 0:00:11.3]} 87... Kc2 {[%clk 0:00:17.1]} 88. Qa4+ {[%clk
0:00:09.6]} 88... Kb2 {[%clk 0:00:16.9]} 89. Qb4+ {[%clk 0:00:10.6]} 89... Kc2
{[%clk 0:00:17.3]} 90. Qa4+ {[%clk 0:00:12]} 90... Kd2 {[%clk 0:00:17.1]} 91.
Qb4+ {[%clk 0:00:12.7]} 91... Kd3 {[%clk 0:00:18.4]} 92. Qa3+ {[%clk 0:00:13.7]}
92... Kd2 {[%clk 0:00:16.8]} 93. Qb2+ {[%clk 0:00:14.3]} 93... Kd3 {[%clk
0:00:13.6]} 94. Qe2+ {[%clk 0:00:12.3]} 94... Kc3 {[%clk 0:00:14.8]} 95. Qe3+
{[%clk 0:00:11.8]} 95... Kb4 {[%clk 0:00:14.7]} 96. Qb6+ {[%clk 0:00:13.2]}
96... Ka4 {[%clk 0:00:15.7]} 97. Qa7+ {[%clk 0:00:12.8]} 97... Kb5 {[%clk
0:00:16.7]} 98. Qb7+ {[%clk 0:00:13.5]} 98... Kc5 {[%clk 0:00:17.5]} 99. Qe7+
{[%clk 0:00:12.7]} 99... Kc6 {[%clk 0:00:18.2]} 100. Qe6+ {[%clk 0:00:13.4]}
100... Kb5 {[%clk 0:00:18.5]} 101. Qd7+ {[%clk 0:00:14.5]} 101... Kc5 {[%clk
0:00:19.5]} 102. Qe7+ {[%clk 0:00:15.7]} 102... Kb5 {[%clk 0:00:19.5]} 103. Qb7+
{[%clk 0:00:17.3]} 1/2-1/2

[Event "*** Titled Tuesday 3|2 Blitz"]
[Site "Chess.com"]
[Date "2015.10.06"]
[Round "4"]
[White "3f32"]
[Black "JustKid"]
[Result "1-0"]
[WhiteElo "2279"]
[BlackElo "2128"]
[TimeControl "180+2"]
[EndTime "17:41:34 PDT"]
[Termination "3f32 won by resignation"]

1. d4 {[%clk 0:03:01.9]} 1... d5 {[%clk 0:03:00.6]} 2. c4 {[%clk 0:03:03.2]}
2... e6 {[%clk 0:03:02.3]} 3. Nf3 {[%clk 0:03:03.1]} 3... c5 {[%clk 0:03:03.9]}
4. cxd5 {[%clk 0:03:03.1]} 4... exd5 {[%clk 0:03:05.8]} 5. Nc3 {[%clk
0:03:04.4]} 5... Nc6 {[%clk 0:03:07.4]} 6. g3 {[%clk 0:03:05.3]} 6... Nf6 {[%clk
0:03:09.2]} 7. Bg2 {[%clk 0:03:05.6]} 7... Be7 {[%clk 0:03:10.9]} 8. O-O {[%clk
0:03:05.5]} 8... O-O {[%clk 0:03:12.6]} 9. Bg5 {[%clk 0:03:04.5]} 9... c4 {[%clk
0:03:14.1]} 10. Ne5 {[%clk 0:03:04.5]} 10... Be6 {[%clk 0:03:15.7]} 11. f4
{[%clk 0:03:04.8]} 11... h6 {[%clk 0:03:17.3]} 12. Bxf6 {[%clk 0:03:04.7]} 12...
Bxf6 {[%clk 0:03:19.2]} 13. f5 {[%clk 0:03:05]} 13... Bxe5 {[%clk 0:03:20.8]}
14. dxe5 {[%clk 0:03:03.5]} 14... Qb6+ {[%clk 0:03:22.4]} 15. Rf2 {[%clk
0:02:54.4]} 15... Qxb2 {[%clk 0:03:21.6]} 16. Rc1 {[%clk 0:02:54.3]} 16... Kh8
{[%clk 0:03:21.8]} 17. e4 {[%clk 0:02:54.4]} 17... Nxe5 {[%clk 0:03:16.6]} 18.
Rxb2 {[%clk 0:02:53.4]} 1-0

[Event "*** Titled Tuesday 3|2 Blitz"]
[Site "Chess.com"]
[Date "2015.10.06"]
[Round "4"]
[White "MFBerna"]
[Black "wonderfultime"]
[Result "0-1"]
[WhiteElo "2140"]
[BlackElo "2642"]
[TimeControl "180+2"]
[EndTime "17:46:16 PDT"]
[Termination "wonderfultime won on time"]

1. e4 {[%clk 0:03:01.9]} 1... c5 {[%clk 0:02:59.7]} 2. Nf3 {[%clk 0:03:02.9]}
2... d6 {[%clk 0:02:59.8]} 3. d4 {[%clk 0:03:04.2]} 3... cxd4 {[%clk 0:03:01.3]}
4. Nxd4 {[%clk 0:03:06.1]} 4... Nf6 {[%clk 0:03:02.7]} 5. Nc3 {[%clk 0:03:07.6]}
5... g6 {[%clk 0:03:04.4]} 6. Be2 {[%clk 0:03:06.5]} 6... Bg7 {[%clk 0:03:05.8]}
7. O-O {[%clk 0:03:07.1]} 7... O-O {[%clk 0:03:07.2]} 8. Nb3 {[%clk 0:02:58.4]}
8... Nc6 {[%clk 0:03:08.4]} 9. Be3 {[%clk 0:02:56.3]} 9... a6 {[%clk 0:03:09.8]}
10. a4 {[%clk 0:02:44.2]} 10... Be6 {[%clk 0:03:08.1]} 11. f4 {[%clk 0:02:45.2]}
11... Rc8 {[%clk 0:03:08.6]} 12. f5 {[%clk 0:02:45]} 12... Bd7 {[%clk
0:03:08.8]} 13. Qd2 {[%clk 0:02:39.6]} 13... Ne5 {[%clk 0:02:57.3]} 14. Bg5
{[%clk 0:02:31.9]} 14... Rxc3 {[%clk 0:02:49.2]} 15. Bxf6 {[%clk 0:02:25.7]}
15... Qb6+ {[%clk 0:02:37.1]} 16. Kh1 {[%clk 0:02:26.2]} 16... Rxc2 {[%clk
0:02:33.6]} 17. Qxc2 {[%clk 0:02:26.1]} 17... Bxf6 {[%clk 0:02:35.2]} 18. a5
{[%clk 0:02:11.4]} 18... Qb4 {[%clk 0:02:34.5]} 19. Ra3 {[%clk 0:01:31.2]} 19...
Rc8 {[%clk 0:02:32.3]} 20. Qb1 {[%clk 0:01:32.7]} 20... Bc6 {[%clk 0:02:30.4]}
21. Rc1 {[%clk 0:01:26.6]} 21... Rb8 {[%clk 0:02:26.6]} 22. Bf3 {[%clk
0:01:08.2]} 22... Nc4 {[%clk 0:02:21.8]} 23. Qd3 {[%clk 0:00:48.7]} 23... Nxb2
{[%clk 0:02:19.3]} 24. Qc2 {[%clk 0:00:41.7]} 24... Qxa3 {[%clk 0:02:19.7]} 25.
e5 {[%clk 0:00:21.3]} 25... Bxe5 {[%clk 0:02:19.2]} 26. Bxc6 {[%clk 0:00:22.4]}
26... bxc6 {[%clk 0:02:21.1]} 27. Nd2 {[%clk 0:00:10.2]} 27... Qd3 {[%clk
0:02:20.3]} 28. Qxd3 {[%clk 0:00:03.6]} 28... Nxd3 {[%clk 0:02:22.2]} 29. Rxc6
{[%clk 0:00:05.3]} 29... Rb2 {[%clk 0:02:23.2]} 0-1

[Event "*** Titled Tuesday 3|2 Blitz"]
[Site "Chess.com"]
[Date "2015.10.06"]
[Round "4"]
[White "Assasin14"]
[Black "steinitz_attack"]
[Result "1-0"]
[WhiteElo "1749"]
[BlackElo "1764"]
[TimeControl "180+2"]
[EndTime "17:46:16 PDT"]
[Termination "Assasin14 won by resignation"]

1. e4 {[%clk 0:03:01.9]} 1... e5 {[%clk 0:03:00.9]} 2. Nf3 {[%clk 0:03:01.1]}
2... Nc6 {[%clk 0:03:02.5]} 3. Bb5 {[%clk 0:03:01.8]} 3... a6 {[%clk 0:03:03.8]}
4. Ba4 {[%clk 0:03:02.4]} 4... Nf6 {[%clk 0:03:04.5]} 5. d3 {[%clk 0:03:03.1]}
5... b5 {[%clk 0:03:04.9]} 6. Bb3 {[%clk 0:03:03.6]} 6... Bc5 {[%clk 0:03:04.8]}
7. O-O {[%clk 0:03:04.1]} 7... O-O {[%clk 0:03:05.6]} 8. Nbd2 {[%clk 0:03:01.1]}
8... d6 {[%clk 0:03:03.7]} 9. c3 {[%clk 0:03:01.1]} 9... Bg4 {[%clk 0:03:01.9]}
10. Re1 {[%clk 0:02:59.4]} 10... Ne7 {[%clk 0:02:58.1]} 11. Nf1 {[%clk
0:02:58.7]} 11... Ng6 {[%clk 0:02:57.8]} 12. Be3 {[%clk 0:02:57.7]} 12... Nh4
{[%clk 0:02:17.7]} 13. Bxc5 {[%clk 0:02:47.7]} 13... dxc5 {[%clk 0:02:19.6]} 14.
N1d2 {[%clk 0:02:19.6]} 14... Qxd3 {[%clk 0:02:19.9]} 15. Nxe5 {[%clk
0:02:19.8]} 15... Bxd1 {[%clk 0:01:28.3]} 16. Nxd3 {[%clk 0:02:18.3]} 16... Bxb3
{[%clk 0:01:29.5]} 17. axb3 {[%clk 0:02:18.2]} 17... Rad8 {[%clk 0:01:28.9]} 18.
Re3 {[%clk 0:02:13.5]} 18... c4 {[%clk 0:01:28.6]} 19. bxc4 {[%clk 0:02:13.5]}
19... bxc4 {[%clk 0:01:29.3]} 20. Nxc4 {[%clk 0:02:13.4]} 20... Nxe4 {[%clk
0:01:29.4]} 21. Rxe4 {[%clk 0:02:14]} 21... Nxg2 {[%clk 0:01:18.5]} 22. Kxg2
{[%clk 0:02:12.8]} 22... Rxd3 {[%clk 0:01:19.3]} 23. Rxa6 {[%clk 0:02:12.8]}
23... f5 {[%clk 0:01:15.4]} 24. Re7 {[%clk 0:02:09.6]} 24... f4 {[%clk
0:01:04.6]} 25. f3 {[%clk 0:01:54.5]} 25... Rd5 {[%clk 0:00:45.9]} 26. Rc6
{[%clk 0:01:49.8]} 26... Rc8 {[%clk 0:00:44.9]} 27. Rcxc7 {[%clk 0:01:19.2]} 1-0

[Event "*** Titled Tuesday 3|2 Blitz"]
[Site "Chess.com"]
[Date "2015.10.06"]
[Round "4"]
[White "Dlugy"]
[Black "LyonBeast"]
[Result "0-1"]
[WhiteElo "2558"]
[BlackElo "2714"]
[TimeControl "180+2"]
[EndTime "17:46:46 PDT"]
[Termination "LyonBeast won by resignation"]

1. d4 {[%clk 0:03:01.9]} 1... Nf6 {[%clk 0:03:00.7]} 2. Bf4 {[%clk 0:03:03.1]}
2... d6 {[%clk 0:03:01.2]} 3. Nf3 {[%clk 0:03:02.5]} 3... g6 {[%clk 0:03:01.5]}
4. e3 {[%clk 0:03:03.4]} 4... Bg7 {[%clk 0:03:02.5]} 5. h3 {[%clk 0:03:04.9]}
5... b6 {[%clk 0:03:03.8]} 6. Be2 {[%clk 0:03:05.8]} 6... Bb7 {[%clk 0:03:05.1]}
7. O-O {[%clk 0:03:07.4]} 7... O-O {[%clk 0:03:06.4]} 8. c3 {[%clk 0:03:05.3]}
8... Nbd7 {[%clk 0:03:07]} 9. Bh2 {[%clk 0:03:06.4]} 9... Ne4 {[%clk 0:03:06.1]}
10. Nbd2 {[%clk 0:03:06.6]} 10... Nxd2 {[%clk 0:03:01]} 11. Nxd2 {[%clk
0:03:07.5]} 11... e5 {[%clk 0:03:01.8]} 12. Bf3 {[%clk 0:03:08.5]} 12... Qc8
{[%clk 0:03:03.3]} 13. Bxb7 {[%clk 0:03:09]} 13... Qxb7 {[%clk 0:03:05.2]} 14.
Qf3 {[%clk 0:03:10.4]} 14... Rab8 {[%clk 0:03:06.1]} 15. Qxb7 {[%clk 0:03:10.9]}
15... Rxb7 {[%clk 0:03:08]} 16. Rfd1 {[%clk 0:03:09.3]} 16... b5 {[%clk
0:03:08.2]} 17. dxe5 {[%clk 0:03:08.9]} 17... Nxe5 {[%clk 0:03:08.5]} 18. Bxe5
{[%clk 0:03:08.7]} 18... Bxe5 {[%clk 0:03:10.4]} 19. Nf3 {[%clk 0:03:09.5]}
19... Bf6 {[%clk 0:03:11.3]} 20. Nd4 {[%clk 0:03:08.4]} 20... a5 {[%clk
0:03:11]} 21. Rd2 {[%clk 0:03:08.3]} 21... a4 {[%clk 0:03:11]} 22. Rc1 {[%clk
0:03:01.7]} 22... Rfb8 {[%clk 0:03:00.9]} 23. Nc6 {[%clk 0:02:58.7]} 23... Ra8
{[%clk 0:03:01.7]} 24. a3 {[%clk 0:02:59.4]} 24... Ra6 {[%clk 0:03:02.6]} 25.
Nb4 {[%clk 0:03:00.5]} 25... Ra8 {[%clk 0:03:02.9]} 26. Nd5 {[%clk 0:02:59]}
26... Kg7 {[%clk 0:02:56.3]} 27. Nxf6 {[%clk 0:02:56.9]} 27... Kxf6 {[%clk
0:02:58.2]} 28. Rd4 {[%clk 0:02:47.7]} 28... Ra6 {[%clk 0:02:54.7]} 29. Rcd1
{[%clk 0:02:44.8]} 29... Rc6 {[%clk 0:02:55.3]} 30. Kf1 {[%clk 0:02:45.7]} 30...
Rc5 {[%clk 0:02:55.8]} 31. Ke2 {[%clk 0:02:46.8]} 31... Ke6 {[%clk 0:02:56.1]}
32. g4 {[%clk 0:02:47.3]} 32... Rb8 {[%clk 0:02:48.7]} 33. f4 {[%clk 0:02:42.6]}
33... Rc4 {[%clk 0:02:48.4]} 34. Kf3 {[%clk 0:02:38.1]} 34... Rxd4 {[%clk
0:02:48]} 35. Rxd4 {[%clk 0:02:32.8]} 35... c5 {[%clk 0:02:45.9]} 36. Rd2 {[%clk
0:02:33.6]} 36... f5 {[%clk 0:02:43.8]} 37. e4 {[%clk 0:02:32.7]} 37... fxe4+
{[%clk 0:02:41.4]} 38. Kxe4 {[%clk 0:02:33.9]} 38... Rf8 {[%clk 0:02:42.4]} 39.
h4 {[%clk 0:02:17.2]} 39... d5+ {[%clk 0:01:57.8]} 40. Rxd5 {[%clk 0:01:46.6]}
40... Rxf4+ {[%clk 0:01:58.2]} 41. Kxf4 {[%clk 0:01:47.8]} 41... Kxd5 {[%clk
0:01:59.6]} 42. Kg5 {[%clk 0:01:48.6]} 42... Kc4 {[%clk 0:02:01]} 43. Kh6 {[%clk
0:01:50.2]} 43... Kb3 {[%clk 0:02:02.3]} 44. Kxh7 {[%clk 0:01:51.7]} 44... Kxb2
{[%clk 0:02:03.7]} 45. h5 {[%clk 0:01:52.6]} 45... gxh5 {[%clk 0:02:02.5]} 46.
gxh5 {[%clk 0:01:53.1]} 46... Kxa3 {[%clk 0:02:02.2]} 47. h6 {[%clk 0:01:54.3]}
47... Kb3 {[%clk 0:02:00.4]} 48. Kg6 {[%clk 0:01:50.4]} 48... a3 {[%clk
0:02:01.7]} 49. h7 {[%clk 0:01:52]} 49... a2 {[%clk 0:02:03.1]} 50. h8=Q {[%clk
0:01:53.6]} 50... a1=Q {[%clk 0:02:04.4]} 51. Qg8+ {[%clk 0:01:53]} 51... c4
{[%clk 0:02:05]} 52. Qd5 {[%clk 0:01:54]} 52... Qa6+ {[%clk 0:02:01.8]} 53. Kf5
{[%clk 0:01:53.8]} 53... Kxc3 {[%clk 0:01:59.6]} 54. Qe5+ {[%clk 0:01:55]} 54...
Kb3 {[%clk 0:01:59.8]} 55. Qe3+ {[%clk 0:01:45.1]} 55... c3 {[%clk 0:02:00.4]}
56. Qe6+ {[%clk 0:01:46.1]} 56... Qxe6+ {[%clk 0:02:00.8]} 0-1

[Event "*** Titled Tuesday 3|2 Blitz"]
[Site "Chess.com"]
[Date "2015.10.06"]
[Round "4"]
[White "zmaj23"]
[Black "dsanchez1973"]
[Result "1-0"]
[WhiteElo "2316"]
[BlackElo "1963"]
[TimeControl "180+2"]
[EndTime "17:46:56 PDT"]
[Termination "zmaj23 won by checkmate"]

1. e4 {[%clk 0:03:01.9]} 1... e6 {[%clk 0:02:58.5]} 2. d4 {[%clk 0:03:02.2]}
2... d5 {[%clk 0:03:00.3]} 3. Nc3 {[%clk 0:03:02.2]} 3... Bb4 {[%clk 0:03:00.8]}
4. e5 {[%clk 0:03:01.9]} 4... c5 {[%clk 0:03:01.7]} 5. a3 {[%clk 0:03:02.4]}
5... cxd4 {[%clk 0:03:02.8]} 6. Qxd4 {[%clk 0:02:58.9]} 6... Nc6 {[%clk
0:02:59.6]} 7. Bb5 {[%clk 0:02:57.1]} 7... Ba5 {[%clk 0:02:58.2]} 8. Nf3 {[%clk
0:02:46]} 8... Ne7 {[%clk 0:02:53.8]} 9. Qg4 {[%clk 0:02:40.8]} 9... Bd7 {[%clk
0:02:44]} 10. Qxg7 {[%clk 0:02:36.4]} 10... Rg8 {[%clk 0:02:44.7]} 11. Qxh7
{[%clk 0:02:36.9]} 11... Bxc3+ {[%clk 0:02:42.6]} 12. bxc3 {[%clk 0:02:36]}
12... Qa5 {[%clk 0:02:37.4]} 13. Rb1 {[%clk 0:02:33.7]} 13... O-O-O {[%clk
0:02:28.8]} 14. Bd2 {[%clk 0:02:21.2]} 14... Qxa3 {[%clk 0:02:25]} 15. O-O
{[%clk 0:02:19.1]} 15... Nf5 {[%clk 0:02:02.3]} 16. Bxc6 {[%clk 0:02:15.2]}
16... Bxc6 {[%clk 0:02:02.6]} 17. Qxf7 {[%clk 0:02:15.7]} 17... Rde8 {[%clk
0:01:35.5]} 18. Rb3 {[%clk 0:02:08.8]} 18... Qc5 {[%clk 0:01:32.8]} 19. Rfb1
{[%clk 0:02:06.7]} 19... b6 {[%clk 0:01:15.8]} 20. Qxa7 {[%clk 0:02:04.3]} 20...
Rxg2+ {[%clk 0:00:14.5]} 21. Kxg2 {[%clk 0:02:02.9]} 21... Rg8+ {[%clk
0:00:15.5]} 22. Bg5 {[%clk 0:01:58.9]} 22... d4 {[%clk 0:00:13.8]} 23. Qa6+
{[%clk 0:01:57.6]} 23... Bb7 {[%clk 0:00:13.5]} 24. Qd3 {[%clk 0:01:58.5]} 24...
Rxg5+ {[%clk 0:00:13.5]} 25. Kf1 {[%clk 0:01:56.2]} 25... Rh5 {[%clk 0:00:10.6]}
26. Rxb6 {[%clk 0:01:45.9]} 26... Bxf3 {[%clk 0:00:09.7]} 27. Rb8+ {[%clk
0:01:42.2]} 27... Kc7 {[%clk 0:00:10.5]} 28. Qxf3 {[%clk 0:01:42.5]} 28... Qc4+
{[%clk 0:00:11]} 29. Kg1 {[%clk 0:01:40.6]} 29... Rg5+ {[%clk 0:00:11.6]} 30.
Kh1 {[%clk 0:01:40.8]} 30... Nh4 {[%clk 0:00:12.4]} 31. R1b7# {[%clk 0:01:39]}
1-0

[Event "*** Titled Tuesday 3|2 Blitz"]
[Site "Chess.com"]
[Date "2015.10.06"]
[Round "4"]
[White "Po6Don"]
[Black "jbj"]
[Result "0-1"]
[WhiteElo "2007"]
[BlackElo "2276"]
[TimeControl "180+2"]
[EndTime "17:47:08 PDT"]
[Termination "jbj won on time"]

1. e4 {[%clk 0:03:01.9]} 1... e6 {[%clk 0:03:00.1]} 2. d4 {[%clk 0:03:01.9]}
2... d5 {[%clk 0:03:01.3]} 3. e5 {[%clk 0:03:03.4]} 3... c5 {[%clk 0:03:02.4]}
4. Nf3 {[%clk 0:03:04.8]} 4... Nc6 {[%clk 0:03:03.7]} 5. Bd3 {[%clk 0:03:06.1]}
5... cxd4 {[%clk 0:03:03.2]} 6. O-O {[%clk 0:03:07.3]} 6... Qc7 {[%clk
0:03:04.6]} 7. Re1 {[%clk 0:03:06.9]} 7... f6 {[%clk 0:03:02.4]} 8. Bf4 {[%clk
0:02:43.4]} 8... f5 {[%clk 0:02:58.2]} 9. Nbd2 {[%clk 0:02:33.8]} 9... Nge7
{[%clk 0:02:58.4]} 10. h4 {[%clk 0:02:29.6]} 10... Bd7 {[%clk 0:02:48.5]} 11. a3
{[%clk 0:02:25.6]} 11... Ng6 {[%clk 0:02:34.9]} 12. Bh2 {[%clk 0:02:26]} 12...
Be7 {[%clk 0:02:33.2]} 13. h5 {[%clk 0:02:14.2]} 13... Nh4 {[%clk 0:02:33]} 14.
Nxh4 {[%clk 0:02:14.6]} 14... Bxh4 {[%clk 0:02:34.9]} 15. Bxf5 {[%clk
0:02:15.7]} 15... Bxf2+ {[%clk 0:02:27.4]} 16. Kxf2 {[%clk 0:01:13.5]} 16... O-O
{[%clk 0:02:27.4]} 17. Nf3 {[%clk 0:01:12.4]} 17... Rxf5 {[%clk 0:02:27]} 18. h6
{[%clk 0:01:14]} 18... gxh6 {[%clk 0:02:24.7]} 19. Kg1 {[%clk 0:01:14.8]} 19...
Qb6 {[%clk 0:02:23.7]} 20. Kh1 {[%clk 0:01:15.1]} 20... Raf8 {[%clk 0:02:17.3]}
21. b4 {[%clk 0:01:15.3]} 21... Be8 {[%clk 0:02:16.5]} 22. Qd2 {[%clk
0:00:55.6]} 22... Kg7 {[%clk 0:02:07.4]} 23. Rf1 {[%clk 0:00:46.7]} 23... Bh5
{[%clk 0:02:06.2]} 24. Qd3 {[%clk 0:00:25.9]} 24... a6 {[%clk 0:02:01]} 25. Nd2
{[%clk 0:00:25.3]} 25... Rxf1+ {[%clk 0:01:58.3]} 26. Rxf1 {[%clk 0:00:25.4]}
26... Rxf1+ {[%clk 0:01:59]} 27. Nxf1 {[%clk 0:00:27.2]} 27... Bg6 {[%clk
0:01:59.1]} 28. Qf3 {[%clk 0:00:23.3]} 28... Qd8 {[%clk 0:02:00]} 29. Qf2 {[%clk
0:00:14.5]} 29... Qf8 {[%clk 0:01:59.2]} 30. Qe2 {[%clk 0:00:12.2]} 30... Qf5
{[%clk 0:01:59.2]} 31. Ng3 {[%clk 0:00:08.5]} 31... Qxc2 {[%clk 0:01:58]} 32.
Nh5+ {[%clk 0:00:08.6]} 32... Kf7 {[%clk 0:01:59.2]} 33. Qf3+ {[%clk 0:00:04.5]}
33... Qf5 {[%clk 0:02:00.2]} 34. Nf6 {[%clk 0:00:03.2]} 34... Qxf3 {[%clk
0:02:00.6]} 35. gxf3 {[%clk 0:00:05.1]} 35... d3 {[%clk 0:02:01.9]} 36. Bf4
{[%clk 0:00:06.2]} 36... Nxe5 {[%clk 0:02:01]} 0-1